[Event "CCC-GM 2022"]
[Site "Ballerup"]
[Date "2022.05.26"]
[Round "3.5"]
[White "Hacker, Jonas"]
[Black "Heimisson, Hilmir Freyr"]
[Result "1-0"]
[ECO "A15"]
[WhiteElo "2396"]
[BlackElo "2323"]
[Annotator "TA"]
[PlyCount "107"]
[EventDate "2022.05.25"]
[EventType "tourn"]
[EventCountry "DEN"]
[SourceTitle "playchess.com"]
[Source "ChessBase"]
[SourceQuality "1"]
[TimeControl "5400+30"]

{[%evp 23,107,0,0,0,0,0,17,-29,-18,-61,-47,-58,-70,-64,-24,-180,-118,-136,-114,-135,-24,-194,-212,-196,-124,-148,0,0,0,0,0,0,0,-141,-16,-25,-17,-37,-36,-32,0,-116,-62,-57,98,108,369,377,370,373,374,370,368,370,1522,1469,29974,29975,29983,1602,29991,29992,29995,5105,2975,2858,2653,2071,5631,1657,1642,1472,1283,1766,1745,1456,1654,1068,5602,5584,5017,5017,29979,29980,29979,5310]} 1. c4 {[%emt 0:00:03]} Nf6 {[%emt 0:01:02]} 2. Nf3 {[%emt 0:00:11]} e6 {[%emt 0:02:02]} 3. Nc3 {[%emt 0:00:56]} d5 {[%emt 0:00:35]} 4. e3 {[%emt 0:00:21]} c6 {[%emt 0:03:21]} 5. b3 {[%emt 0:00:23]} Nbd7 {[%emt 0:00:42]} 6. Bb2 {[%emt 0:00:12]} Bd6 {[%emt 0:00:22]} 7. d4 {[%emt 0:00:47]} O-O {[%emt 0:03:01]} 8. Be2 {[%emt 0:00:12]} b6 {[%emt 0:00:30]} 9. O-O {[%emt 0:00:13]} Bb7 {[%emt 0:00:09]} 10. Qc2 {[%emt 0:00:34]} Qe7 {[%emt 0:01:11]} 11. Rad1 {[%emt 0:00:49]} Rad8 {[%emt 0:00:20]} 12. Rfe1 {[%emt 0:00:18]} Rfe8 {[%emt 0:01:54]} 13. Bf1 {[%emt 0:00:25] D45: Semi-Slav: 5 e3.} c5 {[%emt 0:08:58]} 14. cxd5 {[%emt 0:04:22]} exd5 {[%emt 0:00:52]} 15. Ne2 {[%emt 0:08:31]} (15. g3 {is superior.}) 15... Rc8 $11 {[%emt 0:06:07] [#] Hoping for ...cxd4.} 16. Qf5 $146 {[%emt 0:12:29]} ({Predecessor:} 16. dxc5 Bxc5 17. Qd3 Ne4 18. Nf4 Ndf6 19. h3 Bb4 20. Re2 Nc3 21. Bxc3 Rxc3 22. Qb1 {0-1 (45) Gourlay,I (2342)-Han,Y (2307) Newcastle on Tyne 2021}) 16... c4 {[%emt 0:03:44]} 17. bxc4 {[%emt 0:10:10]} dxc4 {[%emt 0:01:20][%cal Ob6b5]} 18. Nc3 {[%emt 0:01:22]} Ne4 {[%emt 0:14:50]} 19. Rc1 $2 {[%emt 0:27:56] [#]} (19. Ne5 $1 $11 Nxe5 20. Nxe4 Bxe4 21. Qxe4) 19... g6 {[%emt 0:09:56]} ({Black should play} 19... Ndf6 $1 $19 20. Nxe4 Bxe4) 20. Qh3 $17 {[%emt 0:01:39] [#]} Nxc3 {[%emt 0:13:21]} 21. Bxc3 {[%emt 0:01:06][%cal Oe3e4]} b5 {[%emt 0:00:33]} (21... Nf6 $17 {Threatens to win with ...Ba3.} 22. Ne5 b5) 22. Bb2 $2 {[%emt 0:04:37]} (22. e4 $1 $11 {and White is okay.}) 22... Nb6 {[%emt 0:02:54]} 23. e4 {[%emt 0:05:02]} Na4 {[%emt 0:08:16]} (23... Bxe4 $19 {...Bf4 is the strong threat.} 24. Nd2 f5) 24. Ba1 {[%emt 0:00:41]} Bc6 {[%emt 0:04:09]} (24... Bxe4 $17 {And now ...Bf4 would win.} 25. Rxe4 Qxe4) 25. d5 $11 {[%emt 0:01:38]} Bd7 {[%emt 0:00:15]} 26. Qh6 {[%emt 0:00:42][%csl Ga1][%cal Rh6g7]} Qf8 {[%emt 0:01:01] Against Qg7+} 27. Qh4 $40 {[%emt 0:01:15][%mdl 128] Black needs to defend precisely.} c3 {[%emt 0:01:05]} 28. Qf6 {[%emt 0:08:13]} (28. e5 $11 Be7 29. Qd4) 28... b4 {[%emt 0:01:35]} (28... Qe7 $17 29. Qxe7 Rxe7) 29. e5 {[%emt 0:01:34]} Bc5 {[%emt 0:02:47]} 30. Ba6 {[%emt 0:01:39]} Rb8 {[%emt 0:02:02] aiming for ...Rb6.} 31. Qf4 {[%emt 0:00:10]} Nb6 {[%emt 0:01:05]} 32. Red1 {[%emt 0:02:29]} (32. d6 $11 {was the only way to keep the balance.}) 32... Ba4 {[%emt 0:01:49]} ({Black should try} 32... Bc8 $17 33. Bxc8 Rbxc8) 33. Rd3 $15 {[%emt 0:00:32][%cal Oa2a3]} Rbd8 $2 {[%emt 0:00:56]} (33... Nd7 $1 $15 {stays ahead.}) 34. d6 $16 {[%emt 0:01:04][%cal Oa2a3]} f6 $2 {[%emt 0:02:53][%mdl 8192]} (34... Nd7 $16) 35. exf6 $18 {[%emt 0:01:06]} Bxd6 {[%emt 0:00:38] [#]} 36. Rxd6 {[%emt 0:00:43][%mdl 512]} Rxd6 {[%emt 0:00:35]} 37. f7+ {[%emt 0:00:57][%mdl 64] Deflection} Qxf7 {[%emt 0:01:04]} 38. Qxd6 {[%emt 0:00:17]} Qd7 $2 {[%emt 0:00:56]} (38... Qe7 39. Qd4 Qe4 40. Qxe4 Rxe4) 39. Qxb4 {[%emt 0:02:12]} Nd5 {[%emt 0:00:24]} 40. Bc4 {[%emt 0:00:30]} c2 {[%emt 0:00:38]} 41. Qd2 {[%emt 0:00:32]} (41. Qb2 $142 Kf8 42. Bxd5 Re4 43. Qh8+ Ke7 44. Bf6+ Kd6 45. Bxe4 Qe8 46. Be5+ Kd7 47. Qxh7+ Qe7 48. Qxg6) 41... Rd8 {[%emt 0:00:24]} 42. Qd4 {[%emt 0:00:37]} Kf8 {[%emt 0:00:36]} 43. Qh8+ {[%emt 0:01:22]} (43. Re1 $142 Ne3 44. Qf6+ Ke8 45. Rxe3+ Qe6 46. Qxe6+ Kf8 47. Qg8#) 43... Ke7 {[%emt 0:00:00]} 44. Qxh7+ {[%emt 0:00:38]} Kd6 {[%emt 0:00:17]} 45. Qxg6+ {[%emt 0:00:30]} Kc5 {[%emt 0:00:01]} 46. Bb3 {[%emt 0:00:48]} Bxb3 {[%emt 0:01:10]} 47. axb3 {[%emt 0:00:02]} Nb4 {[%emt 0:00:28]} 48. Bd4+ {[%emt 0:00:35]} Kb5 49. Rxc2 {[%emt 0:00:28]} Nxc2 {[%emt 0:01:16]} 50. Qxc2 {[%emt 0:00:04] Threatening mate with Qc4+.} Qc6 {[%emt 0:00:52] Inhibits Qc4+.} 51. Qd3+ {[%emt 0:00:31]} Kb4 {[%emt 0:00:01]} 52. h4 {[%emt 0:00:41]} Rd7 {[%emt 0:00:59]} 53. Qd2+ {[%emt 0:00:45]} Kxb3 {[%emt 0:00:30]} 54. Ne5 {[%emt 0:00:20] Never resign too early!  Weighted Error Value: White=0.34/Black=0.74} (54. Qd1+ $142 Ka3 55. Ne5 Rxd4 56. Qa1+ (56. Nxc6 Rxd1+ 57. Kh2 Rc1 $11) 56... Kb3 57. Nxc6 Rd6 58. Nxa7 Rd5 59. Nc6) 1-0

[Event "CCC-GM 2022"]
[Site "Ballerup"]
[Date "2022.05.27"]
[Round "4.1"]
[White "Nielsen, Viktor Haarmark"]
[Black "Stefansson, Vignir Vatnar"]
[Result "0-1"]
[ECO "E04"]
[WhiteElo "2323"]
[BlackElo "2496"]
[Annotator "TA"]
[PlyCount "54"]
[EventDate "2022.05.25"]
[EventType "tourn"]
[EventCountry "DEN"]
[SourceTitle "playchess.com"]
[Source "ChessBase"]
[SourceQuality "1"]
[TimeControl "5400+30"]

{[%evp 11,54,11,14,11,34,-1,61,31,88,75,61,67,70,52,52,15,11,12,12,0,0,0,6,10,33,0,0,-8,0,-7,-7,-64,-48,-55,0,-225,-219,-223,-230,-307,-284,-286,-304,-717,-690]} 1. d4 {[%emt 0:00:02]} d5 {[%emt 0:00:19]} 2. c4 {[%emt 0:00:08]} e6 {[%emt 0:00:09]} 3. Nf3 {[%emt 0:00:24][%cal Bg1f3,Bf3e5,Be5c6][%mdl 32]} Nf6 {[%emt 0:00:17]} 4. g3 {[%emt 0:00:05]} dxc4 {[%emt 0:00:22]} 5. Bg2 {[%emt 0:00:15]} c6 {[%emt 0:00:24]} 6. Ne5 {[%emt 0:00:52]} Bb4+ {[%emt 0:00:15]} 7. Bd2 {[%emt 0:03:52] E04: Open Catalan: 5 Nf3.} Be7 {[%emt 0:00:10]} (7... Qxd4 {is interesting.} 8. Bxb4 Qxe5 9. Na3 b5) 8. Bc3 {[%emt 0:05:24]} b5 {[%emt 0:29:34]} (8... a5 $11) 9. Nxc6 $14 {[%emt 0:03:31] [#] White is slightly better.} Qc7 $146 {[%emt 0:08:03]} ({Black should try} 9... Nxc6 $14 10. Bxc6+ Bd7 11. Bxa8 Qxa8) ({Predecessor:} 9... Nxc6 10. Bxc6+ Bd7 11. Bxa8 Qxa8 12. O-O h5 13. f3 h4 14. Be1 hxg3 15. Bxg3 Qd5 {½-½ (56) Borhy,M (2386)-Kantor,G (2527) Ajka 2021}) 10. Nxe7 $16 {[%emt 0:15:51]} Bb7 {[%emt 0:00:11] [#]} 11. d5 $1 {[%emt 0:00:05]} Qxe7 {[%emt 0:00:44]} 12. d6 {[%emt 0:09:24]} Qd7 {[%emt 0:00:06]} 13. Bxb7 {[%emt 0:00:15]} Qxb7 {[%emt 0:00:05]} 14. O-O {[%emt 0:00:05]} Nbd7 {[%emt 0:00:32]} 15. b3 {[%emt 0:02:06]} Rc8 {[%emt 0:02:38]} 16. Nd2 {[%emt 0:10:49]} cxb3 {[%emt 0:06:11]} 17. Qxb3 {[%emt 0:01:07]} O-O {[%emt 0:01:06]} 18. Bxf6 {[%emt 0:07:00]} Nxf6 {[%emt 0:00:07]} 19. Rab1 {[%emt 0:01:36]} Rc5 {[%emt 0:00:49]} 20. Rfd1 {[%emt 0:05:05]} Rd8 {[%emt 0:01:33]} 21. Nf3 {[%emt 0:01:01]} ({Better is} 21. Qb4 $11 Rc2 22. Nf3 (22. Qxb5 Qxb5 23. Rxb5 h6 $11)) 21... Qb6 {[%emt 0:03:41]} 22. a4 {[%emt 0:05:24][%cal Ra4b5]} Ne4 {[%emt 0:01:30]} (22... Rxd6 23. Rxd6 Qxd6 24. axb5 $11) (22... a6 $1 $15) 23. Qe3 $2 {[%emt 0:05:07]} (23. a5 $1 $11 Qxa5 24. Qe3) 23... Nc3 $19 {[%emt 0:00:44]} 24. Rdc1 {[%emt 0:00:31]} b4 {[%emt 0:06:24]} ({Stronger than} 24... Nxa4 25. Rxc5 Nxc5 26. Ne5 $15) 25. Ne5 {[%emt 0:05:19]} Qxd6 {[%emt 0:04:23]} (25... Nxb1 26. Qxc5 Nc3 27. Qxb6 axb6 28. Kf1 $15) 26. Nd3 {[%emt 0:01:07]} Rc4 {[%emt 0:00:13] [#] White must now prevent ...Re4.} ({Weaker is} 26... Nxb1 27. Rxc5 Nc3 28. Nxb4 Nxa4 29. Rc4 $17) 27. Rxb4 $2 {[%emt 0:07:59]} (27. Rc2) 27... Nxe2+ $1 {[%emt 0:00:36] Weighted Error Value: White=0.50/Black=0.17 (very precise)} ({And not} 27... Rxb4 28. Nxb4 Nxe2+ 29. Qxe2 $17) 0-1

[Event "CCC-GM 2022"]
[Site "Ballerup"]
[Date "2022.05.27"]
[Round "4.2"]
[White "Brondt, Nicolai Kvist"]
[Black "Hacker, Jonas"]
[Result "0-1"]
[ECO "E04"]
[WhiteElo "2241"]
[BlackElo "2396"]
[Annotator "TA"]
[PlyCount "76"]
[EventDate "2022.05.25"]
[EventType "tourn"]
[EventCountry "DEN"]
[SourceTitle "playchess.com"]
[Source "ChessBase"]
[SourceQuality "1"]
[TimeControl "5400+30"]

{[%evp 10,76,20,0,0,5,0,0,1,0,18,-3,0,0,0,0,3,-37,-28,-48,-54,-49,-56,-60,-6,-6,-6,-75,-76,-91,-76,-139,-137,-179,-183,-174,-174,-174,-173,-233,-227,-470,-456,-513,-512,-518,-518,-480,-370,-527,-522,-560,-552,-562,-554,-815,-825,-740,-711,-746,-704,-29979,-5406,-29981,-29982,-29981,-29981,-29987,-29977]} 1. d4 {[%emt 0:00:23]} Nf6 {[%emt 0:00:18]} 2. c4 {[%emt 0:00:11]} e6 {[%emt 0:00:08]} 3. Nf3 {[%emt 0:00:02]} d5 {[%emt 0:00:17]} 4. g3 {[%emt 0:00:01]} dxc4 {[%emt 0:00:33]} 5. Bg2 {[%emt 0:00:48]} a6 {[%emt 0:00:37]} 6. Ne5 {[%emt 0:01:01][%mdl 1024] White has compensation.} Bb4+ {[%emt 0:01:44] E04: Open Catalan: 5 Nf3.} 7. Nc3 {[%emt 0:03:40]} Nd5 {[%emt 0:01:38]} 8. Bd2 {[%emt 0:09:14] 8.0-0 is the modern continuation.} Nb6 $1 {[%emt 0:01:54] The position is equal.} 9. e3 {[%emt 0:02:47]} N8d7 {[%emt 0:02:32] [#]} 10. Rc1 $146 {[%emt 0:05:12]} ({Predecessor:} 10. Nxd7 Qxd7 11. O-O O-O 12. Ne4 a5 13. Qc2 Rd8 14. Rfc1 h6 15. a3 Bxd2 16. Nxd2 e5 17. Nxc4 Nxc4 18. Qxc4 exd4 19. exd4 c6 20. Re1 {½-½ (20) Postny,E (2600)-Santos Latasa,J (2575) ICC INT 2020}) 10... Nxe5 {[%emt 0:13:08]} (10... Bxc3 {seems wilder.} 11. Rxc3 Nxe5 12. dxe5 Bd7) 11. dxe5 {[%emt 0:00:16]} Bxc3 {[%emt 0:03:05]} 12. Bxc3 {[%emt 0:05:48]} Qxd1+ {[%emt 0:02:43]} 13. Kxd1 {[%emt 0:05:43]} Nd5 {[%emt 0:04:40][%cal Bb6d5,Bd5e7,Be7c6][%mdl 32]} 14. Bd2 {[%emt 0:02:25] A strong pair of Bishops.} b5 {[%emt 0:05:13]} 15. b3 {[%emt 0:10:16]} Bb7 {[%emt 0:01:46][%cal Oc4c3] White must now prevent ...c3!} 16. Ke1 {[%emt 0:02:07]} cxb3 {[%emt 0:02:09]} ({Black should try} 16... O-O-O $1 $15) 17. axb3 $11 {[%emt 0:02:56] And now e4 would win.} O-O-O {[%emt 0:01:16]} 18. Ke2 {[%emt 0:30:38] [#]} (18. Ba5 $1 $11 {keeps the balance.} Rd7 19. Ke2) 18... Ne7 $1 $36 {[%emt 0:08:44][%mdl 2048] Black is in control. Black converts the advantage convincingly.} 19. f3 {[%emt 0:02:27] [#]} Rd7 $1 {[%emt 0:06:37]} 20. Rhd1 {[%emt 0:01:25]} (20. Rc2 $142) 20... Rhd8 {[%emt 0:05:08]} 21. Bb4 {[%emt 0:00:49]} Rxd1 {[%emt 0:04:34]} 22. Rxd1 {[%emt 0:00:01]} Rxd1 {[%emt 0:00:11]} 23. Kxd1 $19 {[%emt 0:00:01][%mdl 4096] Endgame KBB-KBN} Nc6 {[%emt 0:01:13][%csl LRb4,LRe5]} 24. Bc3 {[%emt 0:06:48]} (24. Bf8 $142) 24... b4 {[%emt 0:02:10]} 25. Bb2 {[%emt 0:01:14]} (25. Bd2 {might work better.}) 25... Na5 {[%emt 0:00:56]} 26. e4 {[%emt 0:00:25]} Nxb3 {[%emt 0:01:06]} 27. Kc2 {[%emt 0:00:24]} Nc5 {[%emt 0:01:06]} 28. Bf1 {[%emt 0:00:47]} a5 {[%emt 0:03:43] Hoping for ...Bc6.} 29. Bb5 {[%emt 0:02:23]} (29. Bd4 {was worth a try.} Nd7 30. Bg1) 29... c6 {[%emt 0:01:42][%cal Bc7c6,Bc6c5,Bc5c4,Bc4c3][%mdl 32]} 30. Bd4 {[%emt 0:03:11]} Nd7 {[%emt 0:01:23]} ({And not} 30... cxb5 31. Bxc5 f5 32. exf6 gxf6 33. Bb6 $17) 31. Ba4 {[%emt 0:00:29]} Kc7 {[%emt 0:00:47]} 32. f4 {[%emt 0:00:55]} c5 {[%emt 0:01:22]} 33. Be3 {[%emt 0:00:58]} Bxe4+ {[%emt 0:00:55]} 34. Kd2 {[%emt 0:00:01]} c4 {[%emt 0:03:39] aiming for ...Nb6.} 35. Bxd7 {[%emt 0:00:59]} Kxd7 {[%emt 0:00:28]} (35... c3+ $142 36. Ke2 Kxd7 37. f5 b3 38. f6 g5 39. Bc1 b2 40. Bxb2 cxb2 41. g4 b1=Q 42. Kf2 Qd3 43. h4 gxh4 44. Ke1 Bf3 45. Kf2 Qe2+ 46. Kg1 Qg2#) 36. Bb6 {[%emt 0:00:02]} c3+ {[%emt 0:00:39] Black mates.} 37. Ke3 {[%emt 0:01:32] [#]} b3 $1 {[%emt 0:00:29][%cal Bb4b3,Bb3b2][%mdl 32]} 38. Kxe4 {[%emt 0:00:26]} (38. Bxa5 c2) 38... b2 {[%emt 0:00:23] Weighted Error Value: White=0.48/Black=0.06 (flawless)} 0-1

[Event "CCC-GM 2022"]
[Site "Ballerup"]
[Date "2022.05.27"]
[Round "4.3"]
[White "Komarov, Dimitri"]
[Black "Olsen, Filip Boe"]
[Result "1/2-1/2"]
[ECO "D43"]
[WhiteElo "2493"]
[BlackElo "2407"]
[Annotator "TA"]
[PlyCount "60"]
[EventDate "2022.05.25"]
[EventType "tourn"]
[EventCountry "DEN"]
[SourceTitle "playchess.com"]
[Source "ChessBase"]
[SourceQuality "1"]
[TimeControl "5400+30"]

{[%evp 16,60,43,27,22,20,24,0,0,0,9,-4,-8,-23,-23,-30,0,0,9,0,0,0,0,-2,0,0,0,0,0,0,0,0,18,1,0,0,18,0,20,7,6,0,0,0,0,-39,-41]} 1. d4 {[%emt 0:00:02]} Nf6 {[%emt 0:00:11]} 2. c4 {[%emt 0:00:04]} e6 {[%emt 0:00:14]} 3. Nf3 {[%emt 0:00:08]} d5 {[%emt 0:00:10]} 4. Nc3 {[%emt 0:00:04]} c6 {[%emt 0:00:22]} 5. Bg5 {[%emt 0:00:06]} h6 {[%emt 0:00:29]} 6. Bxf6 {[%emt 0:00:06]} Qxf6 {[%emt 0:00:13]} 7. g3 {[%emt 0:00:15]} Nd7 {[%emt 0:09:06]} 8. Bg2 {[%emt 0:00:15]} g6 {[%emt 0:00:48]} 9. O-O {[%emt 0:03:20]} dxc4 {[%emt 0:04:57] D43: Semi-Slav: 5 Bg5 h6.} 10. Ne4 {[%emt 0:10:59]} Qe7 {[%emt 0:03:53] [#]} 11. Ned2 $146 {[%emt 0:00:33]} (11. Ne5 {feels hotter.} Bg7 12. f4 O-O 13. Qc1) ({Predecessor:} 11. Ne5 Bg7 12. Nxc4 O-O 13. e3 Rd8 14. f4 c5 15. dxc5 Nxc5 16. Qc2 Bd7 17. Rad1 Nxe4 18. Bxe4 {0-1 (24) Ulko,J (2450)-Stukopin,A (2399) Moscow 2009}) 11... Bg7 {[%emt 0:01:53] The position is equal.} 12. Nxc4 {[%emt 0:00:07]} O-O {[%emt 0:02:05]} 13. e4 {[%emt 0:06:40]} Nb6 {[%emt 0:17:46]} 14. Nxb6 {[%emt 0:06:24]} axb6 {[%emt 0:00:13]} 15. Qb3 {[%emt 0:00:43]} b5 {[%emt 0:09:35]} 16. e5 {[%emt 0:00:21]} Rd8 {[%emt 0:00:21]} 17. a3 {[%emt 0:09:12]} Ra4 {[%emt 0:02:21]} 18. Rfd1 {[%emt 0:10:06]} b6 {[%emt 0:04:02]} 19. Rd2 {[%emt 0:07:06]} Bb7 {[%emt 0:05:03]} 20. Rad1 {[%emt 0:01:47]} Rda8 {[%emt 0:06:20]} 21. Ne1 {[%emt 0:01:46]} b4 {[%emt 0:00:12]} 22. Nc2 {[%emt 0:03:17][%cal Rc2b4]} bxa3 {[%emt 0:01:17]} 23. Nxa3 {[%emt 0:00:05]} b5 {[%emt 0:06:15] Prevents Nc4.} 24. Qe3 {[%emt 0:05:30]} Bf8 {[%emt 0:05:03]} 25. Nc2 {[%emt 0:01:48]} Rb8 {[%emt 0:03:22]} 26. Qe2 {[%emt 0:08:40]} Qc7 {[%emt 0:01:33]} 27. b3 {[%emt 0:08:26]} Ra2 {[%emt 0:00:57]} 28. b4 {[%emt 0:00:08] Inhibits c5.} Rb2 {[%emt 0:02:25]} 29. Qe3 {[%emt 0:01:47] Strongly threatening Qa3.} Ra8 {[%emt 0:00:27] Prevents Qa3.} 30. Be4 {[%emt 0:04:40]} (30. Qc3 $5 {[%cal Rc3b2]} Raa2 31. d5 exd5 32. Bxd5 Bxb4 33. Bxf7+ (33. Nxb4 Rxd2 34. Rxd2 Rxd2 $15) 33... Qxf7 34. Nxb4 Rxd2 35. Rxd2 Rxd2 36. Qxd2 $11) 30... Raa2 {[%emt 0:01:26] Weighted Error Value: White=0.08 (flawless) /Black=0.04 (flawless)} 1/2-1/2

[Event "CCC-GM 2022"]
[Site "Ballerup"]
[Date "2022.05.27"]
[Round "4.4"]
[White "Heimisson, Hilmir Freyr"]
[Black "Blomqvist, Erik"]
[Result "1/2-1/2"]
[ECO "E39"]
[WhiteElo "2323"]
[BlackElo "2523"]
[Annotator "TA"]
[PlyCount "114"]
[EventDate "2022.05.25"]
[EventType "tourn"]
[EventCountry "DEN"]
[SourceTitle "playchess.com"]
[Source "ChessBase"]
[SourceQuality "1"]
[TimeControl "5400+30"]

{[%evp 16,114,-18,-25,-24,-32,-32,-47,-42,-114,-12,-4,-7,-5,-5,-9,0,0,0,0,0,0,8,3,3,3,0,6,2,4,4,7,8,4,9,10,9,10,10,9,11,5,10,5,14,4,13,0,10,2,2,0,13,10,16,0,14,16,16,14,18,19,37,18,56,0,6,3,1,0,0,0,0,0,0,0,0,0,0,0,0,0,0,0,8,8,16,16,16,16,16,16,16,16,16,8,16,16,16,16,16]} 1. d4 {[%emt 0:02:27]} Nf6 {[%emt 0:01:14]} 2. c4 {[%emt 0:00:38]} e6 {[%emt 0:00:08]} 3. Nc3 {[%emt 0:02:25]} Bb4 {[%emt 0:00:14]} 4. Qc2 {[%emt 0:00:09]} c5 {[%emt 0:00:39]} 5. dxc5 {[%emt 0:01:06]} O-O {[%emt 0:00:25]} 6. Nf3 {[%emt 0:05:52]} Na6 {[%emt 0:00:19][%cal Bb8a6,Ba6c5,Bc5e4][%mdl 32]} 7. e3 {[%emt 0:04:30]} Nxc5 {[%emt 0:00:55]} 8. a3 {[%emt 0:08:09]} Bxc3+ {[%emt 0:00:41]} 9. Qxc3 {[%emt 0:00:07]} b6 {[%emt 0:05:05] E39: Nimzo-Indian: Classical: 4...c5 5 dxc5 0-0.} 10. b4 {[%emt 0:08:13] is the legacy move (10.Be2).} Nce4 {[%emt 0:02:10]} 11. Qb3 {[%emt 0:02:59]} Bb7 {[%emt 0:00:48] Black is slightly better.} 12. Bb2 {[%emt 0:00:55]} (12. Bd3 $15) 12... d5 {[%emt 0:01:41]} ({Black should play} 12... Ng4 $17 13. Be2 Nexf2) 13. Be2 $11 {[%emt 0:05:09]} dxc4 {[%emt 0:01:59]} 14. Bxc4 {[%emt 0:00:31]} Rc8 {[%emt 0:02:28] Strongly threatening ...Ng4.} 15. O-O {[%emt 0:01:05]} Qe7 {[%emt 0:06:09]} 16. Rac1 {[%emt 0:03:10] [#]} Rfd8 $146 {[%emt 0:03:08]} ({Predecessor:} 16... Bd5 17. Bxd5 Nxd5 18. h3 h6 19. Rfd1 Rfd8 20. Rxc8 Rxc8 21. Qd3 Nef6 22. e4 Nf4 {½-½ (43) Pogonina,N (2466)-Muetsch,A (2133) Monte Carlo 2017}) 17. Be2 {[%emt 0:08:41]} h6 {[%emt 0:12:14]} 18. h3 {[%emt 0:02:16]} Qe8 {[%emt 0:12:44]} 19. Rxc8 {[%emt 0:06:43]} Rxc8 {[%emt 0:00:12]} 20. Rc1 {[%emt 0:00:35]} Rxc1+ {[%emt 0:01:46]} 21. Bxc1 {[%emt 0:00:01]} Qc8 {[%emt 0:09:07]} 22. Qc4 {[%emt 0:03:01]} Qxc4 {[%emt 0:00:44]} 23. Bxc4 {[%emt 0:00:02]} Bd5 {[%emt 0:03:43]} 24. Bd3 {[%emt 0:01:24]} Ne8 {[%emt 0:03:27]} 25. Nd4 {[%emt 0:05:21]} N4d6 {[%emt 0:09:35]} 26. Bc2 {[%emt 0:06:40]} (26. f3 $5 {[%cal Re3e4]}) 26... e5 {[%emt 0:01:50]} 27. Ne2 {[%emt 0:01:43]} f6 {[%emt 0:01:14]} 28. Nc3 {[%emt 0:00:31]} Bc4 {[%emt 0:00:09]} 29. f4 {[%emt 0:02:39]} Nc7 {[%emt 0:07:55]} 30. Kf2 {[%emt 0:02:38]} Kf7 {[%emt 0:00:16]} 31. a4 {[%emt 0:04:15]} b5 {[%emt 0:02:28]} 32. axb5 {[%emt 0:02:39]} Ncxb5 {[%emt 0:00:06]} 33. Na4 {[%emt 0:02:13]} exf4 {[%emt 0:06:48]} 34. exf4 {[%emt 0:00:02]} Ke6 {[%emt 0:00:26]} 35. Be3 {[%emt 0:03:13]} Kd5 {[%emt 0:00:37]} 36. Bh7 {[%emt 0:00:51]} Kc6 {[%emt 0:00:43]} 37. g4 {[%emt 0:00:39]} Bf7 {[%emt 0:02:24]} 38. Bc2 {[%emt 0:01:53]} Bc4 {[%emt 0:01:47]} 39. Bc5 {[%emt 0:01:38]} (39. Nb2 $5 {[%cal Rb2c4]}) 39... Kd5 {[%emt 0:00:41]} 40. Bh7 {[%emt 0:00:11] A strong pair of Bishops.} ({White should try} 40. Nb2 $14) 40... Ne4+ {[%emt 0:00:56] The position is equal.} 41. Bxe4+ {[%emt 0:02:03]} Kxe4 {[%emt 0:00:01][%mdl 4096] Endgame KBN-KBN} 42. f5 {[%emt 0:00:59]} h5 {[%emt 0:00:32]} (42... Bb3 $5 43. Nb2 h5 $11) 43. Kg3 {[%emt 0:00:45]} Bb3 {[%emt 0:00:29]} 44. Nb2 {[%emt 0:00:01]} hxg4 {[%emt 0:00:30]} 45. hxg4 {[%emt 0:00:02]} Bf7 {[%emt 0:00:21]} 46. Nd1 {[%emt 0:01:16]} g6 {[%emt 0:00:19]} 47. Nf2+ {[%emt 0:00:12]} Kd5 {[%emt 0:00:29]} 48. Kf4 {[%emt 0:00:54]} a5 {[%emt 0:01:00]} 49. Be7 {[%emt 0:00:51]} axb4 {[%emt 0:00:42]} 50. Bxb4 {[%emt 0:00:09]} gxf5 {[%emt 0:00:08]} 51. Kxf5 {[%emt 0:00:55]} Be6+ {[%emt 0:00:12]} 52. Kxf6 {[%emt 0:00:18]} Bxg4 {[%emt 0:00:02]} 53. Nxg4 {[%emt 0:00:20]} Nd4 {[%emt 0:00:07]} 54. Be1 {[%emt 0:00:31]} Ke4 {[%emt 0:00:07]} 55. Nf2+ {[%emt 0:00:22]} Kd5 {[%emt 0:00:07]} 56. Ba5 Nc6 {[%emt 0:00:09]} 57. Bc3 {[%emt 0:00:35]} Nd4 {[%emt 0:00:07] Weighted Error Value: White=0.06 (flawless) /Black=0.07 (flawless)} 1/2-1/2